[Event "*** Titled Tuesday Blitz"]
[Site "Chess.com"]
[Date "2021.02.09"]
[Round "2"]
[White "Smile2005"]
[Black "FGHSMN"]
[Result "1/2-1/2"]
[WhiteElo "2334"]
[BlackElo "2628"]
[TimeControl "180+1"]
[EndTime "10:19:09 PST"]
[Termination "Game drawn by repetition"]

1. Nf3 {[%clk 0:02:59.3]} 1... Nf6 {[%clk 0:02:59.3]} 2. g3 {[%clk 0:02:59.6]}
2... b6 {[%clk 0:02:58.5]} 3. Bg2 {[%clk 0:03:00.5]} 3... Bb7 {[%clk 0:02:58.6]}
4. O-O {[%clk 0:03:01.4]} 4... e6 {[%clk 0:02:58.2]} 5. d3 {[%clk 0:02:58.4]}
5... c5 {[%clk 0:02:47.8]} 6. e4 {[%clk 0:02:55.1]} 6... d6 {[%clk 0:02:47.6]}
7. Nc3 {[%clk 0:02:52.9]} 7... Be7 {[%clk 0:02:46.3]} 8. Re1 {[%clk 0:02:52.3]}
8... Nbd7 {[%clk 0:02:44.8]} 9. Nd2 {[%clk 0:02:50.7]} 9... Qc7 {[%clk
0:02:36.3]} 10. a4 {[%clk 0:02:43.4]} 10... O-O {[%clk 0:02:32.7]} 11. Nc4
{[%clk 0:02:41.4]} 11... a6 {[%clk 0:02:30.6]} 12. Bf4 {[%clk 0:02:37.9]} 12...
Qc6 {[%clk 0:02:19.2]} 13. Ne3 {[%clk 0:02:28.9]} 13... Ne5 {[%clk 0:02:10]} 14.
Bxe5 {[%clk 0:02:14.2]} 14... dxe5 {[%clk 0:02:10.9]} 15. f4 {[%clk 0:02:14.5]}
15... b5 {[%clk 0:01:39.5]} 16. f5 {[%clk 0:02:07.4]} 16... c4 {[%clk
0:01:28.3]} 17. fxe6 {[%clk 0:02:00.2]} 17... fxe6 {[%clk 0:01:23.9]} 18. dxc4
{[%clk 0:01:37.1]} 18... b4 {[%clk 0:01:17.9]} 19. Nb1 {[%clk 0:01:23.9]} 19...
Bc5 {[%clk 0:01:00.8]} 20. Qe2 {[%clk 0:01:20.3]} 20... Qb6 {[%clk 0:00:49]} 21.
Nd2 {[%clk 0:01:12.6]} 21... Ng4 {[%clk 0:00:47.7]} 22. Nf1 {[%clk 0:00:35.8]}
22... Rxf1+ {[%clk 0:00:42.3]} 23. Bxf1 {[%clk 0:00:34.5]} 23... Bxe3+ {[%clk
0:00:35.2]} 24. Kh1 {[%clk 0:00:33.8]} 24... Bxe4+ {[%clk 0:00:26.1]} 25. Bg2
{[%clk 0:00:30.1]} 25... Bxg2+ {[%clk 0:00:19.8]} 26. Kxg2 {[%clk 0:00:25.2]}
26... h5 {[%clk 0:00:17.1]} 27. h3 {[%clk 0:00:24.6]} 27... Qc6+ {[%clk
0:00:16.1]} 28. Qf3 {[%clk 0:00:24.7]} 28... Qxf3+ {[%clk 0:00:16.1]} 29. Kxf3
{[%clk 0:00:25.6]} 29... Rf8+ {[%clk 0:00:16.7]} 30. Ke4 {[%clk 0:00:24.1]}
30... Bd2 {[%clk 0:00:16.3]} 31. hxg4 {[%clk 0:00:23.4]} 31... Bxe1 {[%clk
0:00:16.5]} 32. Rxe1 {[%clk 0:00:22.2]} 32... hxg4 {[%clk 0:00:17.4]} 33. Kxe5
{[%clk 0:00:22.4]} 33... Rf2 {[%clk 0:00:18]} 34. Re3 {[%clk 0:00:18]} 34...
Rxc2 {[%clk 0:00:17.7]} 35. b3 {[%clk 0:00:18.5]} 35... Rc3 {[%clk 0:00:18]} 36.
Kd4 {[%clk 0:00:16.1]} 36... e5+ {[%clk 0:00:15.6]} 37. Ke4 {[%clk 0:00:15.9]}
37... Rxe3+ {[%clk 0:00:11]} 38. Kxe3 {[%clk 0:00:15.9]} 38... Kf7 {[%clk
0:00:11.9]} 39. Ke4 {[%clk 0:00:15.6]} 39... Ke6 {[%clk 0:00:12.8]} 40. Ke3
{[%clk 0:00:13.6]} 40... Kd6 {[%clk 0:00:12.4]} 41. Ke4 {[%clk 0:00:13.5]} 41...
g6 {[%clk 0:00:11.5]} 42. Kd3 {[%clk 0:00:13.4]} 42... Ke6 {[%clk 0:00:10.5]}
43. Ke4 {[%clk 0:00:13.5]} 43... Kd6 {[%clk 0:00:10.9]} 44. Ke3 {[%clk
0:00:13.4]} 44... a5 {[%clk 0:00:11.5]} 45. Ke4 {[%clk 0:00:13.3]} 45... Ke6
{[%clk 0:00:11.9]} 46. c5 {[%clk 0:00:09.2]} 46... g5 {[%clk 0:00:08.1]} 47. c6
{[%clk 0:00:09.5]} 47... Kd6 {[%clk 0:00:08.5]} 48. c7 {[%clk 0:00:10]} 48...
Kxc7 {[%clk 0:00:09]} 49. Kxe5 {[%clk 0:00:10.9]} 49... Kc6 {[%clk 0:00:09.8]}
50. Ke4 {[%clk 0:00:02.9]} 50... Kc5 {[%clk 0:00:08.6]} 51. Ke5 {[%clk
0:00:03.4]} 51... Kc6 {[%clk 0:00:08.8]} 52. Ke4 {[%clk 0:00:03.7]} 52... Kc5
{[%clk 0:00:08.6]} 53. Ke5 {[%clk 0:00:04.1]} 53... Kc6 {[%clk 0:00:08.3]}
1/2-1/2

[Event "*** Titled Tuesday Blitz"]
[Site "Chess.com"]
[Date "2021.02.09"]
[Round "2"]
[White "skoularikii"]
[Black "Godzillator"]
[Result "1-0"]
[WhiteElo "2493"]
[BlackElo "2280"]
[TimeControl "180+1"]
[EndTime "10:19:09 PST"]
[Termination "skoularikii won on time"]

1. e4 {[%clk 0:03:00.9]} 1... c6 {[%clk 0:03:00.1]} 2. d4 {[%clk 0:02:56.5]}
2... d5 {[%clk 0:03:01]} 3. e5 {[%clk 0:02:56.4]} 3... Bf5 {[%clk 0:03:00.4]} 4.
Nf3 {[%clk 0:02:56.9]} 4... e6 {[%clk 0:03:00.3]} 5. Be2 {[%clk 0:02:57]} 5...
c5 {[%clk 0:02:59]} 6. Nbd2 {[%clk 0:02:46.2]} 6... Nc6 {[%clk 0:02:53]} 7. c3
{[%clk 0:02:44.8]} 7... cxd4 {[%clk 0:02:52.4]} 8. cxd4 {[%clk 0:02:44.6]} 8...
Bb4 {[%clk 0:02:47.6]} 9. O-O {[%clk 0:02:43.9]} 9... Nge7 {[%clk 0:02:47.1]}
10. a3 {[%clk 0:02:28.9]} 10... Ba5 {[%clk 0:02:46.7]} 11. b4 {[%clk 0:02:28.1]}
11... Bb6 {[%clk 0:02:45.7]} 12. Bb2 {[%clk 0:02:24.1]} 12... Ng6 {[%clk
0:02:40.8]} 13. Nb3 {[%clk 0:02:17.6]} 13... Nf4 {[%clk 0:02:38.8]} 14. Rc1
{[%clk 0:02:01.3]} 14... Nxe2+ {[%clk 0:02:33]} 15. Qxe2 {[%clk 0:02:01.4]}
15... Bg4 {[%clk 0:02:30.4]} 16. h3 {[%clk 0:02:00.9]} 16... Bh5 {[%clk
0:02:28.3]} 17. Qe3 {[%clk 0:02:00.3]} 17... O-O {[%clk 0:02:25.6]} 18. Rfe1
{[%clk 0:01:55.2]} 18... Rc8 {[%clk 0:02:19.8]} 19. Nc5 {[%clk 0:01:52.3]} 19...
Rc7 {[%clk 0:02:19.1]} 20. g4 {[%clk 0:01:46.9]} 20... Bg6 {[%clk 0:02:18.3]}
21. Nd2 {[%clk 0:01:45.7]} 21... Qc8 {[%clk 0:02:15.4]} 22. f4 {[%clk
0:01:39.2]} 22... a6 {[%clk 0:02:10.1]} 23. Ndb3 {[%clk 0:01:38.8]} 23... Ba7
{[%clk 0:02:06.7]} 24. Rf1 {[%clk 0:01:31.6]} 24... b6 {[%clk 0:02:05.1]} 25.
Nd3 {[%clk 0:01:27.5]} 25... Be4 {[%clk 0:02:02.7]} 26. Nf2 {[%clk 0:01:25.8]}
26... Bg6 {[%clk 0:02:00.6]} 27. Kg2 {[%clk 0:01:09.4]} 27... Ne7 {[%clk
0:02:00]} 28. Kg3 {[%clk 0:01:06.5]} 28... Qd7 {[%clk 0:01:41.6]} 29. Rxc7
{[%clk 0:01:05.4]} 29... Qxc7 {[%clk 0:01:41.9]} 30. Rc1 {[%clk 0:01:05.9]}
30... Qd7 {[%clk 0:01:41.9]} 31. Nd2 {[%clk 0:01:04.8]} 31... Rc8 {[%clk
0:01:40.2]} 32. Rxc8+ {[%clk 0:01:03.6]} 32... Qxc8 {[%clk 0:01:40.3]} 33. Qc3
{[%clk 0:01:03.8]} 33... Qxc3+ {[%clk 0:01:35.2]} 34. Bxc3 {[%clk 0:01:04.1]}
34... Bc2 {[%clk 0:01:32.2]} 35. Nf1 {[%clk 0:01:02]} 35... Kf8 {[%clk
0:01:28.2]} 36. Ne3 {[%clk 0:01:02.3]} 36... Bb3 {[%clk 0:01:26]} 37. Nd3 {[%clk
0:00:59.4]} 37... g6 {[%clk 0:01:17.8]} 38. f5 {[%clk 0:00:52.3]} 38... gxf5
{[%clk 0:01:12.5]} 39. gxf5 {[%clk 0:00:52.4]} 39... Bb8 {[%clk 0:01:08.9]} 40.
f6 {[%clk 0:00:47.5]} 40... Ng6 {[%clk 0:01:08.7]} 41. Kg4 {[%clk 0:00:45.1]}
41... Ba4 {[%clk 0:00:58]} 42. h4 {[%clk 0:00:43.8]} 42... Bb5 {[%clk
0:00:58.3]} 43. Nc1 {[%clk 0:00:41.9]} 43... Kg8 {[%clk 0:00:52.7]} 44. Kg5
{[%clk 0:00:41.5]} 44... Bc7 {[%clk 0:00:43.2]} 45. Ng4 {[%clk 0:00:41.1]} 45...
a5 {[%clk 0:00:34.9]} 46. Nh6+ {[%clk 0:00:40.8]} 46... Kf8 {[%clk 0:00:34.6]}
47. h5 {[%clk 0:00:40.9]} 47... Nh8 {[%clk 0:00:34]} 48. Ng4 {[%clk 0:00:40.9]}
48... Bc4 {[%clk 0:00:27.8]} 49. bxa5 {[%clk 0:00:39.9]} 49... bxa5 {[%clk
0:00:27.4]} 50. Ne3 {[%clk 0:00:40.2]} 50... Bb5 {[%clk 0:00:21]} 51. Kh6 {[%clk
0:00:39.6]} 51... Kg8 {[%clk 0:00:17]} 52. Nb3 {[%clk 0:00:39.7]} 52... a4
{[%clk 0:00:14.5]} 53. Nc5 {[%clk 0:00:38.8]} 53... Bb6 {[%clk 0:00:13.4]} 54.
Ng2 {[%clk 0:00:32.2]} 54... Bc4 {[%clk 0:00:04.9]} 55. Nf4 {[%clk 0:00:32]}
55... Bb3 {[%clk 0:00:04.8]} 56. Bb4 {[%clk 0:00:29.7]} 56... Bxc5 {[%clk
0:00:03.3]} 57. dxc5 {[%clk 0:00:28.7]} 57... Bc4 {[%clk 0:00:03.7]} 58. c6
{[%clk 0:00:28.8]} 58... Ba6 {[%clk 0:00:04]} 59. c7 {[%clk 0:00:28.4]} 59... d4
{[%clk 0:00:03.6]} 60. Nd3 {[%clk 0:00:25.8]} 1-0

[Event "*** Titled Tuesday Blitz"]
[Site "Chess.com"]
[Date "2021.02.09"]
[Round "2"]
[White "chess4life23"]
[Black "MPGM"]
[Result "1-0"]
[WhiteElo "2322"]
[BlackElo "2606"]
[TimeControl "180+1"]
[EndTime "10:19:10 PST"]
[Termination "chess4life23 won by resignation"]

1. d4 {[%clk 0:03:00.9]} 1... Nf6 {[%clk 0:02:58.9]} 2. c4 {[%clk 0:03:01.2]}
2... e6 {[%clk 0:02:57.4]} 3. Nf3 {[%clk 0:03:00.7]} 3... b6 {[%clk 0:02:56.6]}
4. a3 {[%clk 0:03:00.6]} 4... Bb7 {[%clk 0:02:52.5]} 5. Nc3 {[%clk 0:03:01.1]}
5... d5 {[%clk 0:02:53.1]} 6. cxd5 {[%clk 0:03:01.7]} 6... exd5 {[%clk
0:02:51.6]} 7. Bg5 {[%clk 0:03:00.6]} 7... Be7 {[%clk 0:02:48.3]} 8. e3 {[%clk
0:03:00.3]} 8... O-O {[%clk 0:02:45.8]} 9. Be2 {[%clk 0:03:00]} 9... Nbd7 {[%clk
0:02:21]} 10. Rc1 {[%clk 0:02:58.2]} 10... h6 {[%clk 0:02:12.3]} 11. Bh4 {[%clk
0:02:50.5]} 11... c5 {[%clk 0:02:10.2]} 12. O-O {[%clk 0:02:48.9]} 12... c4
{[%clk 0:01:58.8]} 13. Ne5 {[%clk 0:02:47.7]} 13... a6 {[%clk 0:01:50.8]} 14. f4
{[%clk 0:02:46.3]} 14... b5 {[%clk 0:01:48]} 15. Bf3 {[%clk 0:02:44]} 15... Nb6
{[%clk 0:01:44.3]} 16. g4 {[%clk 0:02:18.6]} 16... Ne8 {[%clk 0:01:42.3]} 17.
Bg3 {[%clk 0:02:12.7]} 17... Nd6 {[%clk 0:01:40.5]} 18. Qe1 {[%clk 0:02:09]}
18... a5 {[%clk 0:01:38.1]} 19. h4 {[%clk 0:01:58.5]} 19... b4 {[%clk
0:01:37.7]} 20. axb4 {[%clk 0:01:59.4]} 20... axb4 {[%clk 0:01:38.6]} 21. Ne2
{[%clk 0:01:59.6]} 21... Ra2 {[%clk 0:01:01.4]} 22. g5 {[%clk 0:01:27.8]} 22...
Nf5 {[%clk 0:00:53.5]} 23. gxh6 {[%clk 0:01:23]} 23... Nxh6 {[%clk 0:00:23.9]}
24. Rf2 {[%clk 0:00:53]} 24... Rxb2 {[%clk 0:00:21.8]} 25. Rg2 {[%clk
0:00:51.8]} 25... Nf5 {[%clk 0:00:20.3]} 26. Bf2 {[%clk 0:00:50.6]} 26... Bxh4
{[%clk 0:00:14.3]} 27. Bg4 {[%clk 0:00:26.3]} 27... Bxf2+ {[%clk 0:00:07.1]} 28.
Qxf2 {[%clk 0:00:27.2]} 28... Bc8 {[%clk 0:00:06.8]} 29. Bxf5 {[%clk 0:00:22.1]}
29... Bxf5 {[%clk 0:00:07.7]} 30. Qg3 {[%clk 0:00:22.2]} 30... Qf6 {[%clk
0:00:08.1]} 31. Rh2 {[%clk 0:00:18.9]} 31... c3 {[%clk 0:00:07.4]} 32. Qf3
{[%clk 0:00:15.4]} 32... Rxe2 {[%clk 0:00:07.3]} 33. Qxe2 {[%clk 0:00:15.5]}
33... g6 {[%clk 0:00:05.8]} 34. Kg2 {[%clk 0:00:07.4]} 34... Kg7 {[%clk
0:00:05.8]} 35. Rch1 {[%clk 0:00:07.6]} 35... Rg8 {[%clk 0:00:06.5]} 36. Rh7+
{[%clk 0:00:05.9]} 36... Kf8 {[%clk 0:00:07]} 37. Rxf7+ {[%clk 0:00:06.5]} 37...
Qxf7 {[%clk 0:00:07.9]} 38. Nxf7 {[%clk 0:00:07.2]} 38... Kxf7 {[%clk
0:00:08.8]} 39. Qb5 {[%clk 0:00:07.3]} 39... Nd7 {[%clk 0:00:07.3]} 40. Kf2
{[%clk 0:00:06.6]} 40... c2 {[%clk 0:00:07.5]} 41. Rc1 {[%clk 0:00:06]} 41...
Rb8 {[%clk 0:00:06.9]} 42. Qxd5+ {[%clk 0:00:05.7]} 42... Be6 {[%clk 0:00:06.6]}
43. Qd6 {[%clk 0:00:03.7]} 43... b3 {[%clk 0:00:07.1]} 44. f5 {[%clk 0:00:01.9]}
44... gxf5 {[%clk 0:00:07.1]} 45. Qe5 {[%clk 0:00:01.4]} 45... b2 {[%clk
0:00:07.1]} 46. d5 {[%clk 0:00:02.3]} 46... Re8 {[%clk 0:00:03.6]} 47. dxe6+
{[%clk 0:00:02.6]} 47... Rxe6 {[%clk 0:00:04.5]} 48. Qxb2 {[%clk 0:00:02.8]}
48... Nc5 {[%clk 0:00:03.8]} 49. Qxc2 {[%clk 0:00:03.1]} 49... Ne4+ {[%clk
0:00:04]} 50. Kg2 {[%clk 0:00:04]} 50... Rd6 {[%clk 0:00:04.1]} 51. Qc7+ {[%clk
0:00:04.4]} 51... Ke6 {[%clk 0:00:04.4]} 52. Qc8+ {[%clk 0:00:04.8]} 52... Ke5
{[%clk 0:00:04.3]} 53. Qh8+ {[%clk 0:00:05.1]} 53... Kd5 {[%clk 0:00:04.2]} 54.
Rd1+ {[%clk 0:00:05.5]} 54... Kc4 {[%clk 0:00:04.8]} 55. Rxd6 {[%clk 0:00:06]}
55... Nxd6 {[%clk 0:00:05.7]} 56. Qd4+ {[%clk 0:00:06.2]} 1-0

[Event "*** Titled Tuesday Blitz"]
[Site "Chess.com"]
[Date "2021.02.09"]
[Round "2"]
[White "mjray79"]
[Black "exoticprincess"]
[Result "0-1"]
[WhiteElo "2521"]
[BlackElo "2845"]
[TimeControl "180+1"]
[EndTime "10:19:11 PST"]
[Termination "exoticprincess won on time"]

1. d4 {[%clk 0:03:00.9]} 1... c6 {[%clk 0:02:59.5]} 2. c4 {[%clk 0:03:01]} 2...
d5 {[%clk 0:03:00.4]} 3. Nf3 {[%clk 0:03:00.6]} 3... Nf6 {[%clk 0:03:00.6]} 4.
Nc3 {[%clk 0:03:00.7]} 4... dxc4 {[%clk 0:03:00.6]} 5. a4 {[%clk 0:03:00.5]}
5... a5 {[%clk 0:03:00.7]} 6. Ne5 {[%clk 0:02:52.8]} 6... Ng4 {[%clk 0:02:59.5]}
7. Nxc4 {[%clk 0:02:42.8]} 7... e5 {[%clk 0:02:59]} 8. e3 {[%clk 0:02:34.9]}
8... Bb4 {[%clk 0:02:57.7]} 9. Be2 {[%clk 0:02:32.3]} 9... exd4 {[%clk 0:02:56]}
10. exd4 {[%clk 0:02:30.6]} 10... Nf6 {[%clk 0:02:54]} 11. O-O {[%clk
0:02:28.8]} 11... h6 {[%clk 0:02:52.4]} 12. Bf3 {[%clk 0:02:25.6]} 12... Be6
{[%clk 0:02:49.4]} 13. Ne5 {[%clk 0:02:18.1]} 13... O-O {[%clk 0:02:47]} 14. Be3
{[%clk 0:02:16.6]} 14... Re8 {[%clk 0:02:44.5]} 15. Rc1 {[%clk 0:02:11.9]} 15...
Na6 {[%clk 0:02:42]} 16. Be2 {[%clk 0:01:59.4]} 16... Nc7 {[%clk 0:02:38.9]} 17.
f4 {[%clk 0:01:54.3]} 17... Ncd5 {[%clk 0:02:34.1]} 18. Nxd5 {[%clk 0:01:51.2]}
18... Bxd5 {[%clk 0:02:29.7]} 19. Bf3 {[%clk 0:01:40.6]} 19... Bxf3 {[%clk
0:02:16.2]} 20. Qxf3 {[%clk 0:01:41.5]} 20... Qd5 {[%clk 0:02:14.9]} 21. Qe2
{[%clk 0:01:35.5]} 21... Rad8 {[%clk 0:02:10.5]} 22. f5 {[%clk 0:01:33.8]} 22...
Qb3 {[%clk 0:02:03.5]} 23. Rf3 {[%clk 0:01:28.5]} 23... Qxa4 {[%clk 0:01:48.3]}
24. g4 {[%clk 0:01:28.2]} 24... Qb5 {[%clk 0:01:25.3]} 25. Qg2 {[%clk
0:01:20.5]} 25... Qd5 {[%clk 0:01:24.7]} 26. g5 {[%clk 0:01:18.6]} 26... hxg5
{[%clk 0:01:25.6]} 27. Qxg5 {[%clk 0:01:14.1]} 27... Bf8 {[%clk 0:01:12.2]} 28.
Rh3 {[%clk 0:01:05.3]} 28... Qe4 {[%clk 0:00:51.8]} 29. Rh4 {[%clk 0:00:53.3]}
29... Rxe5 {[%clk 0:00:51.2]} 30. dxe5 {[%clk 0:00:44]} 30... Qxe5 {[%clk
0:00:52.1]} 31. Bf4 {[%clk 0:00:34.3]} 31... Bc5+ {[%clk 0:00:46.7]} 32. Kg2
{[%clk 0:00:33]} 32... Qe4+ {[%clk 0:00:44.3]} 33. Kh3 {[%clk 0:00:33]} 33...
Rd3+ {[%clk 0:00:24]} 34. Bg3 {[%clk 0:00:32.9]} 34... Be3 {[%clk 0:00:20.1]}
35. Qxf6 {[%clk 0:00:17.3]} 35... gxf6 {[%clk 0:00:21]} 36. Rxe4 {[%clk
0:00:16.4]} 36... Bxc1 {[%clk 0:00:21.9]} 37. Re8+ {[%clk 0:00:16.1]} 37... Kg7
{[%clk 0:00:21.8]} 38. Ra8 {[%clk 0:00:15.2]} 38... Bxb2 {[%clk 0:00:19]} 39.
Rxa5 {[%clk 0:00:14.9]} 39... Be5 {[%clk 0:00:19.3]} 40. Kg4 {[%clk 0:00:13.5]}
40... Bxg3 {[%clk 0:00:18.6]} 41. hxg3 {[%clk 0:00:14.4]} 41... b5 {[%clk
0:00:19]} 42. Ra6 {[%clk 0:00:14]} 42... Rd4+ {[%clk 0:00:19.4]} 43. Kh5 {[%clk
0:00:13.9]} 43... Rc4 {[%clk 0:00:20.3]} 44. g4 {[%clk 0:00:13.5]} 44... b4
{[%clk 0:00:20.6]} 45. Rb6 {[%clk 0:00:11.8]} 45... c5 {[%clk 0:00:19.4]} 46. g5
{[%clk 0:00:11.5]} 46... fxg5 {[%clk 0:00:20.3]} 47. f6+ {[%clk 0:00:11.8]}
47... Kh7 {[%clk 0:00:19.5]} 48. Rb7 {[%clk 0:00:07.1]} 48... Kg8 {[%clk
0:00:17]} 49. Rb8+ {[%clk 0:00:07.2]} 49... Kh7 {[%clk 0:00:17.1]} 50. Rf8
{[%clk 0:00:07.2]} 50... g4 {[%clk 0:00:11.8]} 51. Rxf7+ {[%clk 0:00:06.8]}
51... Kg8 {[%clk 0:00:12.5]} 52. Kg6 {[%clk 0:00:04.8]} 52... g3 {[%clk
0:00:12.8]} 53. Rd7 {[%clk 0:00:01.8]} 53... Rg4+ {[%clk 0:00:12.1]} 54. Kf5
{[%clk 0:00:02.4]} 54... g2 {[%clk 0:00:12.4]} 55. Rd8+ {[%clk 0:00:01.4]} 55...
Kh7 {[%clk 0:00:10.7]} 0-1

[Event "*** Titled Tuesday Blitz"]
[Site "Chess.com"]
[Date "2021.02.09"]
[Round "2"]
[White "dragos420"]
[Black "MrTattaglia"]
[Result "0-1"]
[WhiteElo "2501"]
[BlackElo "2791"]
[TimeControl "180+1"]
[EndTime "10:19:13 PST"]
[Termination "MrTattaglia won by resignation"]

1. e4 {[%clk 0:03:00.9]} 1... c5 {[%clk 0:02:56.8]} 2. Nf3 {[%clk 0:03:00.9]}
2... d6 {[%clk 0:02:56.7]} 3. d4 {[%clk 0:03:00.4]} 3... cxd4 {[%clk 0:02:56.4]}
4. Nxd4 {[%clk 0:03:01.3]} 4... Nf6 {[%clk 0:02:56.7]} 5. Nc3 {[%clk 0:03:01.7]}
5... a6 {[%clk 0:02:57.1]} 6. Be3 {[%clk 0:03:01.4]} 6... e5 {[%clk 0:02:56.6]}
7. Nb3 {[%clk 0:03:01.9]} 7... Be6 {[%clk 0:02:55.4]} 8. f4 {[%clk 0:03:01.7]}
8... Ng4 {[%clk 0:02:50.4]} 9. Bc1 {[%clk 0:02:33.4]} 9... exf4 {[%clk
0:02:38.7]} 10. Bxf4 {[%clk 0:02:31]} 10... Qf6 {[%clk 0:02:38]} 11. Qd2 {[%clk
0:02:19]} 11... Nc6 {[%clk 0:02:38]} 12. O-O-O {[%clk 0:02:17.4]} 12... Be7
{[%clk 0:02:37.9]} 13. h3 {[%clk 0:01:48.2]} 13... Nge5 {[%clk 0:02:30.8]} 14.
Nd5 {[%clk 0:01:46.3]} 14... Bxd5 {[%clk 0:02:07.2]} 15. exd5 {[%clk 0:01:47.2]}
15... Nb8 {[%clk 0:02:07]} 16. g4 {[%clk 0:01:19.7]} 16... Nbd7 {[%clk
0:02:04.3]} 17. Bg2 {[%clk 0:01:15.1]} 17... O-O {[%clk 0:02:03.1]} 18. Rhf1
{[%clk 0:01:10.1]} 18... Qg6 {[%clk 0:02:01.9]} 19. Nd4 {[%clk 0:01:00.6]} 19...
Bf6 {[%clk 0:01:32.2]} 20. Qe2 {[%clk 0:00:49.5]} 20... Bg5 {[%clk 0:01:23.5]}
21. Kb1 {[%clk 0:00:33.7]} 21... Bxf4 {[%clk 0:01:20.4]} 22. Rxf4 {[%clk
0:00:34.6]} 22... Rfe8 {[%clk 0:01:20.7]} 23. Nf5 {[%clk 0:00:29]} 23... Nc5
{[%clk 0:01:07.1]} 24. Qf2 {[%clk 0:00:22.4]} 24... Rad8 {[%clk 0:01:04.2]} 25.
Rf1 {[%clk 0:00:19.2]} 25... Kh8 {[%clk 0:00:58.6]} 26. Nh4 {[%clk 0:00:18]}
26... Qg5 {[%clk 0:00:53.5]} 27. Rf5 {[%clk 0:00:16.8]} 27... Qe7 {[%clk
0:00:52]} 28. Nf3 {[%clk 0:00:15.3]} 28... Ne4 {[%clk 0:00:48.3]} 29. Qe1 {[%clk
0:00:12.5]} 29... Nxf3 {[%clk 0:00:45.9]} 30. R5xf3 {[%clk 0:00:11.7]} 30... Ng5
{[%clk 0:00:44.2]} 31. Qxe7 {[%clk 0:00:08.7]} 31... Rxe7 {[%clk 0:00:45.1]} 32.
Rf5 {[%clk 0:00:08.8]} 32... f6 {[%clk 0:00:45.4]} 33. h4 {[%clk 0:00:08.9]}
33... Nf7 {[%clk 0:00:45.6]} 34. g5 {[%clk 0:00:08.6]} 34... Rde8 {[%clk
0:00:44.1]} 35. a4 {[%clk 0:00:07.1]} 35... Re1+ {[%clk 0:00:44]} 36. Rxe1
{[%clk 0:00:06.9]} 36... Rxe1+ {[%clk 0:00:44.9]} 37. Ka2 {[%clk 0:00:07.8]}
37... Re2 {[%clk 0:00:39.4]} 38. Bh3 {[%clk 0:00:06.3]} 38... Re3 {[%clk
0:00:36]} 39. Bg2 {[%clk 0:00:05.9]} 39... Re2 {[%clk 0:00:34.2]} 40. Bf3 {[%clk
0:00:05.6]} 40... Re5 {[%clk 0:00:31.5]} 41. Rxe5 {[%clk 0:00:05.5]} 41... Nxe5
{[%clk 0:00:32.4]} 42. Be4 {[%clk 0:00:05.5]} 42... fxg5 {[%clk 0:00:32.8]} 43.
hxg5 {[%clk 0:00:06.4]} 43... h5 {[%clk 0:00:33.7]} 44. gxh6 {[%clk 0:00:06.5]}
44... gxh6 {[%clk 0:00:34.2]} 45. Bf5 {[%clk 0:00:07.4]} 45... a5 {[%clk
0:00:31.5]} 46. b4 {[%clk 0:00:06]} 46... b6 {[%clk 0:00:31]} 47. bxa5 {[%clk
0:00:06.2]} 47... bxa5 {[%clk 0:00:31.9]} 48. Kb3 {[%clk 0:00:07.1]} 48... Kg7
{[%clk 0:00:31.7]} 49. Kc3 {[%clk 0:00:06.3]} 49... Kf6 {[%clk 0:00:32]} 50. Bh3
{[%clk 0:00:06.7]} 50... h5 {[%clk 0:00:29.6]} 51. Kd4 {[%clk 0:00:07]} 51... h4
{[%clk 0:00:28.1]} 52. c4 {[%clk 0:00:07.2]} 52... Nf3+ {[%clk 0:00:28.5]} 53.
Ke3 {[%clk 0:00:05.9]} 53... Ng5 {[%clk 0:00:28.8]} 54. Bg2 {[%clk 0:00:05.9]}
54... Ke5 {[%clk 0:00:29]} 55. Kd3 {[%clk 0:00:03.2]} 55... h3 {[%clk
0:00:28.9]} 56. Bh1 {[%clk 0:00:03.6]} 56... h2 {[%clk 0:00:29.2]} 57. Ke3
{[%clk 0:00:03.9]} 57... Nh3 {[%clk 0:00:28.7]} 58. Kf3 {[%clk 0:00:04.2]} 58...
Kd4 {[%clk 0:00:27.8]} 59. Kg3 {[%clk 0:00:04.6]} 59... Ng5 {[%clk 0:00:27.8]}
60. Kf4 {[%clk 0:00:04.5]} 60... Nf7 {[%clk 0:00:26.5]} 61. Kf5 {[%clk
0:00:04.9]} 61... Ne5 {[%clk 0:00:26]} 62. Ke6 {[%clk 0:00:05]} 62... Nxc4
{[%clk 0:00:26.5]} 63. Bg2 {[%clk 0:00:04.4]} 63... Kc3 {[%clk 0:00:26.6]} 0-1